bitfinex/quotes_SOLUSD_20250622
["timestamp","ask_amount","ask_price","bid_price","bid_amount"]
[1750570093259,44.89855037,136.29,136.25,12.82974086]
[1750570093553,39.39854775,136.29,136.25,12.82974086]
[1750570093732,44.89855037,136.29,136.25,12.82974086]
[1750570093934,39.39854775,136.29,136.25,12.82974086]
[1750570094135,44.89855037,136.29,136.25,12.82974086]
[1750570094328,32.44,136.29,136.25,12.82974086]
[1750570094533,32.44,136.29,136.27,6.95854775]
[1750570094745,5.50000262,136.31,136.27,6.95854775]
[1750570095053,14.90254775,136.32,136.27,6.95854775]
[1750570095054,5.50000262,136.3,136.27,6.95854775]
[1750570095246,5.50000262,136.31,136.27,6.95854775]
[1750570096335,5.50000262,136.31,136.28,5.87026709]
[1750570096829,12.45855037,136.3,136.27,5.87069662]
[1750570097144,6.95854775,136.3,136.27,5.87069662]
[1750570097325,12.45855037,136.31,136.27,5.87069662]
[1750570097528,6.95854775,136.3,136.27,5.87069662]
[1750570098052,14.11625037,136.32,136.27,12.82924437]
[1750570099347,5.50000262,136.32,136.28,6.95854775]
[1750570099560,13.96671852,136.33,136.3,6.95854775]
[1750570099770,13.96671852,136.33,136.32,6.95854775]
[1750570099963,11.92424761,136.37,136.32,6.95854775]
[1750570100276,6.44,136.37,136.34,6.95854775]
[1750570100567,6.95854775,136.39,136.35,6.95854775]
[1750570100974,32.95854775,136.4,136.35,6.95854775]
[1750570101476,32.95854775,136.4,136.36,5.86682311]
[1750570101477,6.95854775,136.39,136.36,5.86682311]
[1750570101767,6.44,136.42,136.37,6.95854775]
[1750570102083,6.44,136.42,136.39,6.95854775]
[1750570102381,18.35756199,136.44,136.4,6.95854775]
[1750570102941,18.35756199,136.44,136.41,10.84340391]
[1750570103574,18.35756199,136.44,136.41,16.70773695]
[1750570105150,26.0,136.45,136.41,16.70773695]
[1750570105576,17.28340391,136.47,136.42,10.84340391]
[1750570105959,17.28340391,136.47,136.43,10.84340391]
[1750570107283,17.28340391,136.47,136.44,16.70678708]
[1750570107284,6.44,136.47,136.44,16.70678708]
[1750570109282,6.44,136.47,136.45,10.84340391]
[1750570109653,6.44,136.47,136.44,10.84340391]
[1750570110983,6.44,136.47,136.43,10.84340391]
[1750570111391,6.44,136.47,136.43,5.8635935]
[1750570111392,17.28340391,136.47,136.43,5.8635935]
[1750570114259,17.28340391,136.47,136.42,10.84340391]
[1750570114260,10.84340391,136.45,136.4,10.84340391]
[1750570114587,10.84340391,136.45,136.41,10.84340391]
[1750570114753,10.84340391,136.46,136.41,10.84340391]
[1750570115764,10.84340391,136.46,136.42,5.86424277]
[1750570116169,10.84340391,136.46,136.42,16.70764668]
[1750570117583,10.84340391,136.46,136.41,10.84340391]
[1750570119496,10.84340391,136.44,136.4,5.86510263]
[1750570119664,10.84340391,136.43,136.39,16.70881397]
[1750570119862,10.84340391,136.43,136.39,5.86541006]
[1750570120972,5.86341784,136.44,136.38,5.86584286]
[1750570121177,10.84340391,136.41,136.38,5.86584286]
[1750570121975,10.84340391,136.41,136.37,5.8663929]
[1750570122795,10.84340391,136.39,136.34,10.84340391]
[1750570122970,10.84340391,136.38,136.33,16.71151804]
[1750570123164,10.84340391,136.38,136.34,10.84340391]
[1750570124292,10.84340391,136.38,136.35,5.86725339]
[1750570124993,10.84340391,136.39,136.35,16.7106573]
[1750570126081,27.5125,136.4,136.36,10.84340391]
[1750570126791,38.35590391,136.4,136.37,5.8663929]
[1750570128768,38.35590391,136.4,136.36,5.86682311]
[1750570129590,10.84340391,136.39,136.36,5.86682311]
[1750570129794,10.84340391,136.38,136.36,5.86682311]
[1750570129984,10.84340391,136.39,136.36,5.86682311]
[1750570130798,10.84340391,136.39,136.35,5.86725339]
[1750570132282,36.84340391,136.38,136.35,5.86725339]
[1750570135101,26.0,136.38,136.35,5.86725339]
[1750570138199,26.0,136.38,136.35,16.7106573]
[1750570139001,26.0,136.38,136.35,5.86725339]
[1750570139796,10.84340391,136.37,136.35,5.86725339]
[1750570140119,10.84340391,136.37,136.32,16.71194851]
[1750570140588,26.0,136.38,136.32,5.8685446]
[1750570140589,10.84340391,136.35,136.32,5.8685446]
[1750570140783,10.84340391,136.36,136.32,5.8685446]
[1750570141692,10.84340391,136.36,136.32,10.84340391]
[1750570142711,10.84340391,136.36,136.31,31.38418019]
[1750570143614,10.84340391,136.36,136.33,5.86811413]
[1750570145118,10.84340391,136.37,136.33,5.86811413]
[1750570145703,26.0,136.37,136.33,5.86811413]
[1750570145911,36.84340391,136.37,136.33,5.86811413]
[1750570149404,10.84340391,136.36,136.33,5.86811413]
[1750570151600,10.84340391,136.36,136.32,5.8685446]
[1750570152395,10.84340391,136.35,136.32,5.8685446]
[1750570153608,10.84340391,136.35,136.28,21.09478421]
[1750570153806,26.0,136.37,136.28,10.84340391]
[1750570153807,10.84340391,136.33,136.28,10.84340391]
[1750570154607,10.84340391,136.32,136.27,16.71410178]
[1750570154816,10.84340391,136.31,136.27,16.71410178]
[1750570155509,10.84340391,136.32,136.28,10.84340391]
[1750570155907,26.0,136.33,136.29,16.71324028]
[1750570156112,8.0973,136.36,136.31,10.84340391]
[1750570156113,26.0,136.35,136.31,10.84340391]
[1750570157818,26.0,136.35,136.32,5.8685446]
[1750570164618,18.94070391,136.36,136.32,5.8685446]
[1750570165516,12.43510391,136.36,136.32,5.8685446]
[1750570167443,10.84340391,136.35,136.32,5.8685446]
[1750570168534,10.84340391,136.35,136.31,5.86897513]
[1750570173318,10.84340391,136.36,136.31,16.71237904]
[1750570173719,10.84340391,136.35,136.31,5.86897513]
[1750570174830,10.84340391,136.36,136.31,31.38481686]
[1750570179143,32.42,136.37,136.33,10.84340391]
[1750570179144,17.26340391,136.37,136.33,10.84340391]
[1750570180060,6.42,136.37,136.33,10.84340391]
[1750570181046,17.26340391,136.37,136.32,25.51476541]
[1750570181243,10.84340391,136.36,136.32,20.5399061]
[1750570185928,22.7465446,136.37,136.32,20.5399061]
[1750570186256,17.26340391,136.37,136.32,20.5399061]
[1750570186454,22.7465446,136.37,136.32,20.5399061]
[1750570186628,17.26340391,136.37,136.32,20.5399061]
[1750570186954,22.7465446,136.37,136.32,20.5399061]
[1750570187152,17.26340391,136.37,136.32,20.5399061]
[1750570187732,6.42,136.37,136.32,31.38331001]
[1750570187932,17.26340391,136.37,136.32,31.38331001]
[1750570188343,6.42,136.37,136.33,10.84340391]
[1750570188730,10.84340391,136.41,136.35,36.84340391]
[1750570188932,16.33240226,136.41,136.36,10.84340391]
[1750570189154,16.33240226,136.41,136.37,5.8663929]
[1750570189640,10.84340391,136.41,136.37,5.8663929]
[1750570190360,10.84340391,136.4,136.37,5.8663929]
[1750570191440,10.84340391,136.4,136.36,5.86682311]
[1750570192949,10.84340391,136.39,136.36,5.86682311]
[1750570193347,10.84340391,136.38,136.36,5.86682311]
[1750570193657,11.8818522,136.42,136.36,5.86682311]
[1750570193841,10.84340391,136.39,136.36,5.86682311]
[1750570195434,10.84340391,136.39,136.35,5.86725339]
[1750570197235,10.84340391,136.38,136.34,5.86768373]
[1750570202756,10.84340391,136.39,136.34,16.71108764]
[1750570204772,10.84340391,136.39,136.34,5.86768373]
[1750570205076,10.84340391,136.38,136.34,5.86768373]
[1750570205470,10.84340391,136.39,136.34,16.71108764]
[1750570209169,10.84340391,136.38,136.34,5.86768373]
[1750570209473,10.84340391,136.37,136.34,5.86768373]
[1750570209977,10.84340391,136.36,136.33,5.86806602]
[1750570210153,10.84340391,136.35,136.33,5.86806602]
[1750570210362,10.84340391,136.34,136.3,5.86940572]
[1750570210546,10.84340391,136.34,136.3,16.71280963]
[1750570210752,10.84340391,136.34,136.3,5.86940572]
[1750570212881,10.84340391,136.32,136.3,5.86940572]
[1750570213375,10.84340391,136.31,136.28,5.87026709]
[1750570214052,5.47812208,136.33,136.28,5.87026709]
[1750570214053,10.84340391,136.3,136.28,5.87026709]
[1750570214253,10.84340391,136.3,136.27,5.87065572]
[1750570216059,10.84340391,136.3,136.26,5.87112872]
[1750570216451,10.84340391,136.3,136.26,16.71453263]
[1750570217179,10.84340391,136.3,136.26,5.87112872]
[1750570217682,10.84340391,136.29,136.26,5.87112872]
[1750570217988,10.84340391,136.28,136.26,5.87112872]
[1750570218363,10.84340391,136.27,136.21,5.87328389]
[1750570218564,10.84340391,136.26,136.21,46.6366878]
[1750570218884,10.84340391,136.27,136.22,10.84340391]
[1750570219052,36.84340391,136.27,136.22,10.84340391]
[1750570219253,36.84340391,136.27,136.21,35.79328389]
[1750570219462,36.84340391,136.27,136.23,5.87242163]
[1750570219895,10.84340391,136.26,136.23,5.87242163]
[1750570220582,36.84340391,136.27,136.23,5.87242163]
[1750570221762,36.84340391,136.27,136.22,5.87285273]
[1750570221969,10.84340391,136.25,136.22,5.87285273]
[1750570222908,10.84340391,136.26,136.22,5.87285273]
[1750570223990,26.0,136.27,136.24,10.84340391]
[1750570224161,10.84340391,136.28,136.24,10.84340391]
[1750570224360,10.84340391,136.28,136.23,10.84340391]
[1750570224573,10.84340391,136.27,136.22,31.39838848]
[1750570226092,10.84340391,136.27,136.23,10.84340391]
[1750570226292,27.5606,136.29,136.23,10.84340391]
[1750570226500,10.84340391,136.27,136.23,10.84340391]
[1750570226877,10.84340391,136.28,136.24,5.8719906]
[1750570231893,10.84340391,136.28,136.22,14.68213184]
[1750570232099,10.84340391,136.28,136.23,10.84340391]
[1750570232793,10.84340391,136.28,136.22,14.68213184]
[1750570232997,10.84340391,136.27,136.24,5.8719906]
[1750570235007,17.24340391,136.3,136.25,10.84340391]
[1750570235184,17.24340391,136.3,136.26,10.84340391]
[1750570235185,6.4,136.3,136.26,10.84340391]
[1750570236114,17.24340391,136.3,136.26,10.84340391]
[1750570236904,10.84340391,136.28,136.24,50.47196711]
[1750570237813,10.84340391,136.27,136.24,5.8719906]
[1750570237988,10.84340391,136.26,136.24,5.8719906]
[1750570239004,10.84340391,136.25,136.22,5.87285273]
[1750570239310,10.84340391,136.24,136.22,5.87285273]
[1750570240187,10.84340391,136.24,136.21,5.87328389]
[1750570240710,10.84340391,136.22,136.19,5.87414641]
[1750570241902,10.84340391,136.24,136.19,31.40291635]
[1750570242413,10.84340391,136.24,136.2,10.84340391]
[1750570243412,10.84340391,136.24,136.21,5.87328389]
[1750570245887,10.84340391,136.25,136.21,5.87328389]
[1750570255945,26.0,136.25,136.21,31.39989754]
[1750570256121,26.0,136.27,136.23,10.84340391]
[1750570256938,10.84340391,136.28,136.24,10.84340391]
[1750570257229,10.84340391,136.28,136.23,10.84340391]
[1750570257615,36.84340391,136.29,136.22,29.92]
[1750570257935,36.84340391,136.29,136.24,10.84340391]
[1750570259130,36.84340391,136.29,136.25,5.87155963]
[1750570260236,36.84340391,136.29,136.22,29.92]
[1750570260237,36.84340391,136.27,136.22,16.71625664]
[1750570260412,10.84340391,136.26,136.22,5.87285273]
[1750570260738,10.84340391,136.26,136.22,16.71625664]
[1750570260937,36.84340391,136.27,136.22,16.71625664]
[1750570263949,26.0,136.27,136.23,10.84340391]
[1750570264125,10.84340391,136.28,136.23,10.84340391]
[1750570264460,87.6,136.29,136.25,10.84340391]
[1750570264621,87.6,136.29,136.22,20.55498457]
[1750570264823,98.44340391,136.29,136.25,10.84340391]
[1750570265324,98.44340391,136.29,136.24,10.84340391]
[1750570266148,98.44340391,136.29,136.25,5.87155963]
[1750570266832,10.84340391,136.27,136.25,5.87155963]
[1750570267021,10.84340391,136.26,136.24,5.87189002]
[1750570268122,10.84340391,136.26,136.22,26.0]
[1750570268323,10.84340391,136.26,136.23,5.87242163]
[1750570268574,10.84340391,136.25,136.23,5.87242163]
[1750570269019,10.84340391,136.25,136.22,31.87277116]
[1750570269422,10.84340391,136.25,136.22,5.87277116]
[1750570269928,10.84340391,136.25,136.21,5.87328389]
[1750570270743,5.48789956,136.28,136.22,10.84340391]
[1750570270744,10.84340391,136.27,136.22,10.84340391]
[1750570271341,10.84340391,136.26,136.22,10.84340391]
[1750570271550,36.84340391,136.27,136.22,10.84340391]
[1750570272749,36.84340391,136.27,136.23,5.87242163]
[1750570274248,26.0,136.25,136.23,5.87242163]
[1750570275127,26.0,136.25,136.22,5.87285273]
[1750570275527,26.0,136.27,136.22,16.71625664]
[1750570275724,36.84340391,136.27,136.22,16.71625664]
[1750570275926,10.84340391,136.26,136.22,5.87285273]
[1750570277722,36.84340391,136.25,136.22,5.87285273]
[1750570278333,26.0,136.25,136.22,5.87285273]
[1750570279253,98.44340391,136.28,136.23,10.84340391]
[1750570279427,18.87690391,136.3,136.25,10.84340391]
[1750570279626,26.0,136.29,136.26,5.87112872]
[1750570279834,36.84340391,136.29,136.26,5.87112872]
[1750570283338,36.84340391,136.29,136.24,10.84340391]
[1750570283639,10.84340391,136.27,136.22,25.52553575]
[1750570284551,10.84340391,136.26,136.23,5.87242163]
[1750570285858,10.84340391,136.26,136.22,5.87285273]
[1750570286527,10.84340391,136.27,136.22,16.71625664]
[1750570286728,16.3322613,136.27,136.22,16.71625664]
[1750570286951,10.84340391,136.27,136.22,16.71625664]
[1750570287154,16.3322613,136.27,136.22,16.71625664]
[1750570287372,10.84340391,136.27,136.22,16.71625664]
[1750570287677,16.3322613,136.27,136.22,16.71625664]
[1750570287981,16.3322613,136.28,136.23,10.84340391]
[1750570288866,16.3322613,136.27,136.22,16.71625664]
[1750570289050,10.84340391,136.27,136.22,16.71625664]
[1750570289252,16.3322613,136.27,136.22,16.71625664]
[1750570289458,10.84340391,136.27,136.22,16.71625664]
[1750570289673,16.3322613,136.27,136.22,16.71625664]
[1750570289871,10.84340391,136.27,136.22,16.71625664]
[1750570290052,16.3322613,136.27,136.22,16.71625664]
[1750570290378,10.84340391,136.27,136.22,16.71625664]
[1750570290681,16.3322613,136.27,136.22,16.71625664]
[1750570290980,10.84340391,136.27,136.22,16.71625664]
[1750570291464,16.3322613,136.28,136.23,10.84340391]
[1750570291973,16.3322613,136.28,136.24,5.8719906]
[1750570292964,5.48885739,136.27,136.24,5.8719906]
[1750570294967,16.3322613,136.27,136.22,10.84340391]
[1750570295159,5.48885739,136.26,136.22,10.84340391]
[1750570295351,5.48885739,136.26,136.21,31.39960229]
[1750570295560,16.3322613,136.26,136.21,31.39960229]
[1750570295759,10.84340391,136.26,136.21,31.39960229]
[1750570296284,10.84340391,136.26,136.21,5.87328389]
[1750570296285,10.84340391,136.25,136.21,5.87328389]
[1750570297562,16.3322613,136.26,136.21,16.7166878]
[1750570297754,10.84340391,136.26,136.21,16.7166878]
[1750570298257,16.3322613,136.26,136.21,16.7166878]
[1750570298463,5.48885739,136.28,136.22,10.84340391]
[1750570298658,10.84340391,136.27,136.22,10.84340391]
[1750570299561,10.84340391,136.27,136.23,5.87242163]
[1750570300898,6.4,136.3,136.25,10.84340391]
[1750570301058,11.89483021,136.3,136.26,10.84340391]
[1750570301262,32.4,136.3,136.26,10.84340391]
[1750570301478,37.89483021,136.3,136.26,10.84340391]
[1750570301661,32.4,136.3,136.26,10.84340391]
[1750570301862,11.89483021,136.3,136.26,10.84340391]
[1750570302069,5.49483021,136.32,136.28,10.84340391]
[1750570302270,5.49483021,136.32,136.27,10.84340391]
[1750570302271,42.33823412,136.32,136.27,10.84340391]
[1750570302870,16.33823412,136.32,136.28,5.87026709]
[1750570303070,10.84340391,136.31,136.27,5.87058188]
[1750570303594,16.33823412,136.31,136.27,5.87058188]
[1750570304694,10.84340391,136.31,136.27,16.71398579]
[1750570304871,10.84340391,136.3,136.27,5.87058188]
[1750570305070,10.84340391,136.31,136.27,5.87058188]
[1750570305964,10.84340391,136.3,136.27,5.87058188]
[1750570306166,10.84340391,136.3,136.26,5.87103069]
[1750570306361,10.84340391,136.29,136.26,5.87103069]
[1750570306566,10.84340391,136.29,136.25,5.87155963]
[1750570309086,10.84340391,136.29,136.24,10.84340391]
[1750570309087,10.84340391,136.28,136.24,5.87189885]
[1750570310116,10.84340391,136.27,136.24,5.87189885]
[1750570310270,33.02903021,136.29,136.22,14.68126634]
[1750570310470,10.84340391,136.27,136.23,10.84340391]
[1750570310681,10.84340391,136.27,136.22,14.68126634]
[1750570310975,10.84340391,136.27,136.22,25.52467025]
[1750570311175,39.42893021,136.29,136.22,25.52467025]
[1750570311375,10.84340391,136.27,136.23,10.84340391]
[1750570311993,10.84340391,136.27,136.22,25.52467025]
[1750570312197,10.84340391,136.27,136.22,31.39752298]
[1750570314992,10.84340391,136.27,136.22,16.71625664]
[1750570315199,5.49483021,136.28,136.22,5.87285273]
[1750570315200,10.84340391,136.26,136.22,5.87285273]
[1750570317298,10.84340391,136.24,136.2,5.87341168]
[1750570317493,10.84340391,136.24,136.16,16.32389686]
[1750570317494,10.84340391,136.22,136.16,16.32389686]
[1750570317674,10.84340391,136.21,136.17,5.87500917]
[1750570319180,10.84340391,136.21,136.17,16.71841308]
[1750570319502,36.84340391,136.2,136.16,5.87533298]
[1750570320078,10.84340391,136.18,136.15,5.87574598]
[1750570320471,10.84340391,136.16,136.12,10.84340391]
[1750570320671,10.84340391,136.17,136.13,5.87673547]
[1750570322883,36.84340391,136.17,136.13,5.87673547]
[1750570325826,26.0,136.17,136.13,31.41197806]
[1750570325990,26.0,136.17,136.14,10.84340391]
[1750570326186,17.01780391,136.2,136.15,10.84340391]
[1750570326384,26.0,136.19,136.15,10.84340391]
[1750570327388,26.0,136.19,136.13,20.56857415]
[1750570327603,26.0,136.19,136.15,10.84340391]
[1750570327797,26.0,136.19,136.16,5.87544065]
[1750570328006,36.84340391,136.19,136.16,5.87544065]
[1750570329614,10.84340391,136.17,136.14,5.8763038]
[1750570329909,26.0,136.19,136.14,16.71970771]
[1750570329910,10.84340391,136.18,136.14,16.71970771]
[1750570331197,26.0,136.19,136.14,16.71970771]
[1750570331198,36.84340391,136.19,136.14,16.71970771]
[1750570333032,10.84340391,136.18,136.14,5.8763038]
[1750570334216,26.0,136.19,136.14,5.8763038]
[1750570334388,10.84340391,136.18,136.14,5.8763038]
[1750570339896,26.0,136.19,136.14,16.71970771]
[1750570339897,36.84340391,136.19,136.14,16.71970771]
[1750570340094,15.05999572,136.2,136.17,10.84340391]
[1750570340599,15.05999572,136.2,136.16,10.84340391]
[1750570340809,25.90339963,136.2,136.15,10.84340391]
[1750570341015,10.84340391,136.19,136.14,61.31046722]
[1750570344427,10.84340391,136.17,136.14,5.8763038]
[1750570347528,10.84340391,136.16,136.13,5.87673547]
[1750570347708,10.84340391,136.15,136.13,5.87673547]
[1750570349415,10.84340391,136.15,136.12,5.8771672]
[1750570351236,10.84340391,136.14,136.11,5.87747091]
[1750570351537,10.84340391,136.13,136.11,5.87747091]
[1750570351735,10.84340391,136.13,136.09,5.87846278]
[1750570352131,10.84340391,136.11,136.08,5.87876846]
[1750570352642,26.0,136.13,136.08,16.72217237]
[1750570352848,26.0,136.13,136.09,10.84340391]
[1750570353022,26.0,136.13,136.1,5.87803085]
[1750570355451,26.0,136.14,136.1,31.4165119]
[1750570358141,26.0,136.14,136.11,10.84340391]
[1750570360038,7.971,136.17,136.1,31.4165119]
[1750570360341,10.84340391,136.15,136.1,31.4165119]
[1750570361044,10.84340391,136.15,136.1,20.57310799]
[1750570361228,10.84340391,136.15,136.1,31.4165119]
[1750570365350,95.571,136.17,136.1,31.4165119]
[1750570365520,36.03494754,136.19,136.14,10.84340391]
[1750570365720,29.97594754,136.19,136.14,10.84340391]
[1750570365942,19.13254363,136.19,136.15,10.84340391]
[1750570366241,19.13254363,136.19,136.16,10.84340391]
[1750570366634,19.13254363,136.19,136.17,10.84340391]
[1750570367441,19.13254363,136.19,136.18,5.87457776]
[1750570370823,12.75254363,136.19,136.18,16.71798167]
[1750570372123,12.75254363,136.19,136.17,10.84340391]
[1750570374734,12.75254363,136.19,136.18,5.87457776]
[1750570375948,12.75254363,136.19,136.16,25.53184362]
[1750570375949,12.75254363,136.19,136.17,5.87500917]
[1750570379846,23.59594754,136.19,136.16,5.87530527]
[1750570380442,10.84340391,136.18,136.16,5.87530527]
[1750570381524,10.84340391,136.17,136.14,5.87617666]
[1750570381760,10.84340391,136.16,136.14,5.87617666]
[1750570382144,10.84340391,136.16,136.13,5.87673547]
[1750570383438,10.84340391,136.16,136.12,5.8771672]
[1750570384442,10.84340391,136.15,136.12,5.8771672]
[1750570385055,10.84340391,136.16,136.12,5.8771672]
[1750570387538,10.84340391,136.16,136.12,16.72057111]
[1750570387859,17.25310391,136.17,136.12,16.72057111]
[1750570390357,32.36,136.18,136.14,10.84340391]
[1750570390669,32.36,136.18,136.15,10.84340391]
[1750570391369,32.36,136.18,136.14,10.84340391]
[1750570391551,43.20340391,136.18,136.14,10.84340391]
[1750570392769,43.20340391,136.18,136.15,5.87587219]
[1750570395246,32.36,136.18,136.15,5.87587219]
[1750570398362,43.20340391,136.18,136.15,5.87587219]
[1750570399986,32.36,136.18,136.15,5.87587219]
[1750570400203,43.20340391,136.18,136.15,5.87587219]
[1750570403562,6.36,136.18,136.15,16.7192761]
[1750570403766,6.36,136.18,136.17,5.87500917]
[1750570404078,6.36,136.18,136.17,16.71841308]
[1750570404386,6.36,136.18,136.17,5.87500917]
[1750570405083,12.75254363,136.19,136.17,5.87500917]
[1750570405773,12.75254363,136.19,136.17,10.84340391]
[1750570406287,12.75254363,136.19,136.16,10.84340391]
[1750570407073,12.75254363,136.19,136.17,5.87500917]
[1750570409467,23.59594754,136.19,136.17,5.87500917]
[1750570412005,12.75254363,136.19,136.11,16.34223913]
[1750570412306,12.75254363,136.19,136.12,5.8771672]
[1750570412307,12.38650391,136.15,136.12,5.8771672]
[1750570413393,38.38650391,136.15,136.11,5.877599]
[1750570415187,26.0,136.16,136.13,10.84340391]
[1750570415390,26.0,136.16,136.14,5.8763038]
[1750570416866,26.0,136.16,136.13,5.87673547]
[1750570417368,36.84340391,136.16,136.13,5.87673547]
[1750570417590,26.0,136.16,136.13,5.87673547]
[1750570417798,10.84340391,136.15,136.13,5.87673547]
[1750570418097,26.0,136.16,136.13,5.87673547]
[1750570418277,10.84340391,136.15,136.13,5.87673547]
[1750570418771,10.84340391,136.15,136.12,5.8771672]
[1750570420000,36.84340391,136.16,136.12,5.8771672]
[1750570421794,26.0,136.16,136.12,16.72057111]
[1750570425382,26.0,136.16,136.13,10.84340391]
[1750570426600,6.36,136.17,136.14,16.71970771]
[1750570426979,6.36,136.17,136.14,5.8763038]
[1750570427181,6.36,136.17,136.14,16.71970771]
[1750570427888,6.36,136.17,136.14,5.8763038]
[1750570431615,6.36,136.17,136.09,68.61658249]
[1750570431807,6.36,136.17,136.13,10.84340391]
[1750570433028,6.36,136.17,136.14,10.84340391]
[1750570434236,6.36,136.17,136.15,5.87587219]
[1750570435648,44.75380391,136.18,136.15,5.87587219]
[1750570436841,44.75380391,136.18,136.14,5.8763038]
[1750570438450,10.84340391,136.17,136.14,5.8763038]
[1750570438829,10.84340391,136.17,136.13,5.87673547]
[1750570440451,10.84340391,136.16,136.13,5.87673547]
[1750570440758,10.84340391,136.17,136.13,5.87673547]
[1750570441721,111.19594754,136.19,136.15,10.84340391]
[1750570441930,100.35254363,136.19,136.15,10.84340391]
[1750570442427,12.75254363,136.19,136.16,16.71884456]
[1750570443734,23.59594754,136.19,136.13,44.57183868]
[1750570444049,10.84340391,136.17,136.14,5.8763038]
[1750570444224,10.84340391,136.18,136.14,5.8763038]
[1750570445870,10.84340391,136.16,136.11,10.84340391]
[1750570446036,10.84340391,136.15,136.11,5.87719264]
[1750570446231,10.84340391,136.14,136.1,5.87803085]
[1750570446452,10.84340391,136.13,136.09,5.87836258]
[1750570447032,10.84340391,136.13,136.09,16.72176649]
[1750570448976,10.84340391,136.13,136.09,5.87836258]
[1750570449948,10.84340391,136.12,136.09,5.87836258]
[1750570450352,10.84340391,136.12,136.08,5.87887881]
[1750570450658,10.84340391,136.1,136.05,5.8801911]
[1750570450859,10.84340391,136.1,136.06,16.72277386]
[1750570451656,10.84340391,136.1,136.03,5.88105564]
[1750570451996,10.84340391,136.08,136.03,16.72445955]
[1750570452678,10.84340391,136.06,136.01,10.84340391]
[1750570452887,10.84340391,136.06,136.02,5.88148801]
[1750570454078,10.84340391,136.06,136.02,16.72489192]
[1750570454255,1.5089,136.11,136.02,20.58520805]
[1750570454463,10.84340391,136.1,136.05,10.84340391]
[1750570454655,36.84340391,136.1,136.05,10.84340391]
[1750570455190,36.84340391,136.1,136.05,16.72321295]
[1750570455486,10.84340391,136.09,136.05,5.87980904]
[1750570456603,26.0,136.1,136.02,14.70372004]
[1750570456604,36.84340391,136.1,136.02,14.70372004]
[1750570456795,10.84340391,136.09,136.04,10.84340391]
[1750570457197,36.84340391,136.1,136.05,10.84340391]
[1750570458206,10.84340391,136.09,136.04,10.84340391]
[1750570458573,36.84340391,136.06,136.01,16.72532435]
[1750570459205,36.84340391,136.06,136.01,5.88192044]
[1750570459386,36.84340391,136.05,136.01,16.72532435]
[1750570460187,26.0,136.05,136.01,16.72532435]
[1750570460909,36.84340391,136.05,136.01,16.72532435]
[1750570461290,36.84340391,136.05,136.01,5.88192044]
[1750570461500,38.46490391,136.05,136.01,5.88192044]
[1750570463414,38.46490391,136.05,135.99,20.588979]
[1750570463589,38.46490391,136.05,136.0,10.84340391]
[1750570464444,38.46490391,136.05,136.01,5.88192044]
[1750570465111,27.6215,136.05,136.01,5.88192044]
[1750570465316,10.84340391,136.03,135.97,5.8836508]
[1750570465528,10.84340391,136.03,135.98,10.84340391]
[1750570466117,10.84340391,136.02,135.97,16.72705471]
[1750570467118,10.84340391,136.02,135.96,14.70966321]
[1750570467119,10.84340391,136.03,135.98,10.84340391]
[1750570467619,27.6215,136.05,135.98,10.84340391]
[1750570467816,10.84340391,136.02,135.98,10.84340391]
[1750570468122,10.84340391,136.03,135.98,10.84340391]
[1750570468326,10.84340391,136.03,135.96,20.59374676]
[1750570468528,10.84340391,136.03,135.98,10.84340391]
[1750570468829,10.84340391,136.04,135.99,10.84340391]
[1750570469031,10.84340391,136.04,136.0,5.88235294]
[1750570471117,36.84340391,136.03,135.97,20.59277781]
[1750570471310,36.84340391,136.03,135.98,10.84340391]
[1750570472019,26.0,136.05,136.02,10.84340391]
[1750570472334,12.34940391,136.09,136.04,10.84340391]
[1750570472834,10.84340391,136.08,136.02,29.9]
[1750570473024,10.84340391,136.07,136.02,40.74340391]
[1750570473222,10.84340391,136.07,136.03,5.88105564]
[1750570473719,10.84340391,136.08,136.03,16.72445955]
[1750570476124,10.84340391,136.07,136.03,5.88105564]
[1750570481852,10.84340391,136.08,136.03,16.72445955]
[1750570482148,36.84340391,136.08,136.03,16.72445955]
[1750570483139,10.84340391,136.07,136.03,5.88105564]
[1750570484655,10.84340391,136.06,136.02,16.72481358]
[1750570486951,31.87895222,136.08,136.02,16.72481358]
[1750570487143,10.84340391,136.07,136.02,16.72481358]
[1750570490230,10.84340391,136.07,136.02,5.88140967]
[1750570490545,10.84340391,136.06,136.02,16.72481358]
[1750570490940,26.0,136.05,135.99,5.88278549]
[1750570491162,10.84340391,136.03,135.99,5.88278549]
[1750570493558,10.84340391,136.02,135.99,5.88278549]
[1750570493750,10.84340391,136.02,135.98,5.88321812]
[1750570494286,10.84340391,136.02,135.94,67.51961702]
[1750570494287,93.48106347,136.03,135.94,19.00190391]
[1750570494501,10.84340391,135.99,135.96,29.96]
[1750570495164,10.84340391,135.99,135.95,35.84451636]
[1750570497888,10.84340391,135.98,135.95,35.82451636]
[1750570498266,10.84340391,135.98,135.95,5.88451636]
[1750570500285,10.84340391,135.99,135.95,5.88451636]